[Event "Titled Tuesday Blitz February 15 Early 2022"]
[White "Altucher, James"]
[Black "Aydin, Gulenay"]
[WhiteFideId "30987458"]
[BlackFideId "34557431"]
[WhiteElo "2176"]
[BlackElo "1429"]
[Result "0-1"]
[Round "04"]
[TimeControl "180+1"]
[Date "2022.02.15"]
[WhiteClock "0:00:08"]
[BlackClock "0:00:48"]

1. e4 {[%clk 0:03:00]}  c5 {[%clk 0:02:59]} 2. Nf3 {[%clk 0:03:00]}  d6 {[%clk 0:03:00]} 3. d3 {[%clk 0:02:57]}  g6 {[%clk 0:03:00]} 4. g3 {[%clk 0:02:57]}  Bg7 {[%clk 0:03:00]} 5. Bg2 {[%clk 0:02:57]}  Nf6 {[%clk 0:03:01]} 6. O-O {[%clk 0:02:58]}  O-O {[%clk 0:03:01]} 7. c3 {[%clk 0:02:58]}  Nc6 {[%clk 0:03:02]} 8. Re1 {[%clk 0:02:58]}  Rb8 {[%clk 0:03:03]} 9. Nbd2 {[%clk 0:02:57]}  b5 {[%clk 0:03:03]} 10. Nf1 {[%clk 0:02:54]}  b4 {[%clk 0:03:03]} 11. d4 {[%clk 0:02:10]}  Nd7 {[%clk 0:02:53]} 12. Be3 {[%clk 0:01:50]}  a5 {[%clk 0:02:52]} 13. Qd2 {[%clk 0:01:25]}  Ba6 {[%clk 0:02:43]} 14. Bh6 {[%clk 0:01:13]}  a4 {[%clk 0:02:33]} 15. Bxg7 {[%clk 0:01:12]}  Kxg7 {[%clk 0:02:34]} 16. a3 {[%clk 0:01:12]}  bxc3 {[%clk 0:02:26]} 17. bxc3 {[%clk 0:01:12]}  Qa5 {[%clk 0:02:20]} 18. e5 {[%clk 0:00:54]}  Bxf1 {[%clk 0:02:10]} 19. Kxf1 {[%clk 0:00:42]}  cxd4 {[%clk 0:02:09]} 20. exd6 {[%clk 0:00:37]}  dxc3 {[%clk 0:01:33]} 21. Qf4 {[%clk 0:00:37]}  e5 {[%clk 0:01:26]} 22. Qc4 {[%clk 0:00:26]}  Qb5 {[%clk 0:01:15]} 23. Qxb5 {[%clk 0:00:25]}  Rxb5 {[%clk 0:01:16]} 24. Rac1 {[%clk 0:00:25]}  Rc5 {[%clk 0:01:16]} 25. Ng5 {[%clk 0:00:22]}  Nf6 {[%clk 0:00:55]} 26. Re3 {[%clk 0:00:14]}  c2 {[%clk 0:00:53]} 27. Ne4 {[%clk 0:00:12]}  Nxe4 {[%clk 0:00:52]} 28. Bxe4 {[%clk 0:00:12]}  Nd4 {[%clk 0:00:52]} 29. Rd3 {[%clk 0:00:08]}  Rb8 {[%clk 0:00:48]} 0-1


[Site "https://www.chess.com"]

[Event "Titled Tuesday Blitz February 15 Early 2022"]
[White "Arabidze, Meri"]
[Black "Svane, Rasmus"]
[WhiteFideId "13604040"]
[BlackFideId "4657101"]
[WhiteElo "2329"]
[BlackElo "2645"]
[Result "1-0"]
[Round "04"]
[TimeControl "180+1"]
[Date "2022.02.15"]
[WhiteClock "0:00:10"]
[BlackClock "0:00:06"]

1. d4 {[%clk 0:03:00]}  Nf6 {[%clk 0:02:58]} 2. Nf3 {[%clk 0:03:01]}  d5 {[%clk 0:02:58]} 3. c4 {[%clk 0:03:00]}  e6 {[%clk 0:02:58]} 4. Nc3 {[%clk 0:03:00]}  a6 {[%clk 0:02:59]} 5. cxd5 {[%clk 0:02:58]}  exd5 {[%clk 0:02:59]} 6. Bg5 {[%clk 0:02:59]}  Be6 {[%clk 0:03:00]} 7. e3 {[%clk 0:02:57]}  Nbd7 {[%clk 0:03:00]} 8. Bd3 {[%clk 0:02:54]}  Bd6 {[%clk 0:03:00]} 9. Qc2 {[%clk 0:02:54]}  c6 {[%clk 0:03:00]} 10. O-O {[%clk 0:02:51]}  Qc7 {[%clk 0:03:00]} 11. Bh4 {[%clk 0:02:42]}  O-O {[%clk 0:02:56]} 12. Rfe1 {[%clk 0:02:25]}  Bg4 {[%clk 0:02:55]} 13. Bg3 {[%clk 0:02:18]}  Rfe8 {[%clk 0:02:56]} 14. Nd2 {[%clk 0:02:08]}  Bh5 {[%clk 0:02:53]} 15. a3 {[%clk 0:02:04]}  Bg6 {[%clk 0:02:53]} 16. b4 {[%clk 0:02:03]}  Re7 {[%clk 0:02:48]} 17. Nb3 {[%clk 0:02:01]}  Nb6 {[%clk 0:02:45]} 18. Nc5 {[%clk 0:01:34]}  Rae8 {[%clk 0:02:20]} 19. Rec1 {[%clk 0:01:15]}  h5 {[%clk 0:02:01]} 20. a4 {[%clk 0:01:13]}  h4 {[%clk 0:02:00]} 21. Bxd6 {[%clk 0:01:11]}  Qxd6 {[%clk 0:02:01]} 22. h3 {[%clk 0:01:10]}  Bxd3 {[%clk 0:02:00]} 23. Qxd3 {[%clk 0:01:07]}  Ra8 {[%clk 0:01:21]} 24. Qf5 {[%clk 0:00:56]}  Ne8 {[%clk 0:00:46]} 25. b5 {[%clk 0:00:40]}  a5 {[%clk 0:00:23]} 26. bxc6 {[%clk 0:00:36]}  bxc6 {[%clk 0:00:24]} 27. Rab1 {[%clk 0:00:36]}  Nc4 {[%clk 0:00:24]} 28. Qh5 {[%clk 0:00:33]}  Qf6 {[%clk 0:00:24]} 29. Ne2 {[%clk 0:00:20]}  g6 {[%clk 0:00:20]} 30. Qh6 {[%clk 0:00:18]}  Ned6 {[%clk 0:00:19]} 31. Qf4 {[%clk 0:00:16]}  Nf5 {[%clk 0:00:09]} 32. Rc3 {[%clk 0:00:11]}  Kg7 {[%clk 0:00:09]} 33. Kh1 {[%clk 0:00:07]}  g5 {[%clk 0:00:09]} 34. Qg4 {[%clk 0:00:07]}  Nfd6 {[%clk 0:00:07]} 35. Qf3 {[%clk 0:00:05]}  Qxf3 {[%clk 0:00:07]} 36. gxf3 {[%clk 0:00:05]}  Kh6 {[%clk 0:00:07]} 37. Kg2 {[%clk 0:00:05]}  f5 {[%clk 0:00:08]} 38. Nc1 {[%clk 0:00:05]}  Rg8 {[%clk 0:00:08]} 39. N1d3 {[%clk 0:00:05]}  g4 {[%clk 0:00:09]} 40. hxg4 {[%clk 0:00:05]}  fxg4 {[%clk 0:00:10]} 41. Ne5 {[%clk 0:00:06]}  gxf3+ {[%clk 0:00:09]} 42. Kxf3 {[%clk 0:00:07]}  Nd2+ {[%clk 0:00:10]} 43. Ke2 {[%clk 0:00:06]}  Nxb1 {[%clk 0:00:10]} 44. Rb3 {[%clk 0:00:06]}  Rg1 {[%clk 0:00:08]} 45. Nxc6 {[%clk 0:00:03]}  Rc7 {[%clk 0:00:06]} 46. Ne5 {[%clk 0:00:03]}  h3 {[%clk 0:00:06]} 47. Nf3 {[%clk 0:00:02]}  Rh1 {[%clk 0:00:05]} 48. Rb6 {[%clk 0:00:02]}  Kh5 {[%clk 0:00:03]} 49. Rxd6 {[%clk 0:00:01]}  h2 {[%clk 0:00:04]} 50. Re6 {[%clk 0:00:01]}  Nc3+ {[%clk 0:00:04]} 51. Kd3 {[%clk 0:00:02]}  Ne4 {[%clk 0:00:05]} 52. Re5+ {[%clk 0:00:03]}  Kg6 {[%clk 0:00:05]} 53. Nxe4 {[%clk 0:00:03]}  dxe4+ {[%clk 0:00:06]} 54. Kxe4 {[%clk 0:00:04]}  Rf7 {[%clk 0:00:05]} 55. Rg5+ {[%clk 0:00:03]}  Kh6 {[%clk 0:00:05]} 56. Rg2 {[%clk 0:00:04]}  Kh5 {[%clk 0:00:03]} 57. Rxh2+ {[%clk 0:00:03]}  Rxh2 {[%clk 0:00:03]} 58. Nxh2 {[%clk 0:00:04]}  Rxf2 {[%clk 0:00:04]} 59. Nf3 {[%clk 0:00:05]}  Ra2 {[%clk 0:00:05]} 60. Ne5 {[%clk 0:00:05]}  Rxa4 {[%clk 0:00:06]} 61. Nc6 {[%clk 0:00:05]}  Kg6 {[%clk 0:00:06]} 62. Ke5 {[%clk 0:00:04]}  Kf7 {[%clk 0:00:06]} 63. d5 {[%clk 0:00:04]}  Ra1 {[%clk 0:00:06]} 64. d6 {[%clk 0:00:04]}  Ke8 {[%clk 0:00:06]} 65. Ke6 {[%clk 0:00:04]}  Rd1 {[%clk 0:00:06]} 66. Nxa5 {[%clk 0:00:04]}  Rd2 {[%clk 0:00:07]} 67. e4 {[%clk 0:00:04]}  Kd8 {[%clk 0:00:07]} 68. e5 {[%clk 0:00:04]}  Rd1 {[%clk 0:00:07]} 69. Nc6+ {[%clk 0:00:05]}  Ke8 {[%clk 0:00:08]} 70. Ne7 {[%clk 0:00:05]}  Rd2 {[%clk 0:00:07]} 71. Nd5 {[%clk 0:00:05]}  Rd1 {[%clk 0:00:07]} 72. Nf6+ {[%clk 0:00:05]}  Kd8 {[%clk 0:00:07]} 73. Nh7 {[%clk 0:00:06]}  Rd2 {[%clk 0:00:07]} 74. Ng5 {[%clk 0:00:06]}  Ke8 {[%clk 0:00:07]} 75. Ne4 {[%clk 0:00:07]}  Rd1 {[%clk 0:00:07]} 76. Nf6+ {[%clk 0:00:07]}  Kd8 {[%clk 0:00:08]} 77. Ng4 {[%clk 0:00:07]}  Rd2 {[%clk 0:00:08]} 78. Ne3 {[%clk 0:00:07]}  Rd3 {[%clk 0:00:09]} 79. Nf5 {[%clk 0:00:07]}  Rd2 {[%clk 0:00:09]} 80. Kf6 {[%clk 0:00:07]}  Ke8 {[%clk 0:00:08]} 81. e6 {[%clk 0:00:08]}  Rd1 {[%clk 0:00:07]} 82. e7 {[%clk 0:00:07]}  Rd2 {[%clk 0:00:04]} 83. Ng7+ {[%clk 0:00:08]}  Kd7 {[%clk 0:00:03]} 84. e8=Q+ {[%clk 0:00:08]}  Kxd6 {[%clk 0:00:04]} 85. Qd8+ {[%clk 0:00:09]}  Kc5 {[%clk 0:00:05]} 86. Qxd2 {[%clk 0:00:09]}  Kc4 {[%clk 0:00:05]} 87. Ke5 {[%clk 0:00:10]}  Kb3 {[%clk 0:00:06]} 1-0


[Site "https://www.chess.com"]

[Event "Titled Tuesday Blitz February 15 Early 2022"]
[White "Aradhya, Garg"]
[Black "Demidov, Mikhail"]
[WhiteFideId "25006746"]
[BlackFideId "4197143"]
[WhiteElo "2169"]
[BlackElo "2525"]
[Result "0-1"]
[Round "04"]
[TimeControl "180+1"]
[Date "2022.02.15"]
[WhiteClock "0:00:02"]
[BlackClock "0:00:40"]

1. d4 {[%clk 0:03:00]}  g6 {[%clk 0:03:00]} 2. Nf3 {[%clk 0:03:00]}  Bg7 {[%clk 0:03:00]} 3. c4 {[%clk 0:03:00]}  d6 {[%clk 0:03:00]} 4. Nc3 {[%clk 0:02:59]}  e5 {[%clk 0:03:00]} 5. dxe5 {[%clk 0:02:55]}  dxe5 {[%clk 0:03:01]} 6. Qxd8+ {[%clk 0:02:55]}  Kxd8 {[%clk 0:03:02]} 7. h4 {[%clk 0:02:35]}  h5 {[%clk 0:03:00]} 8. Be3 {[%clk 0:02:11]}  f6 {[%clk 0:02:50]} 9. O-O-O+ {[%clk 0:02:11]}  Nd7 {[%clk 0:02:44]} 10. c5 {[%clk 0:02:09]}  c6 {[%clk 0:02:39]} 11. Ne4 {[%clk 0:02:05]}  Kc7 {[%clk 0:02:36]} 12. Nd6 {[%clk 0:02:05]}  Bh6 {[%clk 0:02:35]} 13. Ne8+ {[%clk 0:01:42]}  Kd8 {[%clk 0:02:31]} 14. Bxh6 {[%clk 0:01:38]}  Rxh6 {[%clk 0:02:30]} 15. Nd6 {[%clk 0:01:38]}  Ke7 {[%clk 0:02:25]} 16. b4 {[%clk 0:01:38]}  a5 {[%clk 0:02:24]} 17. a3 {[%clk 0:01:37]}  axb4 {[%clk 0:02:24]} 18. axb4 {[%clk 0:01:38]}  b6 {[%clk 0:02:16]} 19. e3 {[%clk 0:00:52]}  bxc5 {[%clk 0:02:15]} 20. b5 {[%clk 0:00:52]}  cxb5 {[%clk 0:01:56]} 21. Bxb5 {[%clk 0:00:51]}  Nb6 {[%clk 0:01:53]} 22. Kc2 {[%clk 0:00:43]}  Be6 {[%clk 0:01:37]} 23. Ne4 {[%clk 0:00:20]}  Rh8 {[%clk 0:01:32]} 24. Ra1 {[%clk 0:00:18]}  Nh6 {[%clk 0:01:30]} 25. Nfd2 {[%clk 0:00:17]}  c4 {[%clk 0:01:19]} 26. Bc6 {[%clk 0:00:14]}  Rxa1 {[%clk 0:01:15]} 27. Rxa1 {[%clk 0:00:15]}  Nc8 {[%clk 0:01:10]} 28. Ra4 {[%clk 0:00:14]}  Nf5 {[%clk 0:01:01]} 29. g3 {[%clk 0:00:13]}  Nfd6 {[%clk 0:01:00]} 30. Nxd6 {[%clk 0:00:13]}  Kxd6 {[%clk 0:01:00]} 31. Bb5 {[%clk 0:00:09]}  Nb6 {[%clk 0:01:00]} 32. Ra5 {[%clk 0:00:07]}  f5 {[%clk 0:00:56]} 33. Kc3 {[%clk 0:00:07]}  Rc8 {[%clk 0:00:56]} 34. Ra6 {[%clk 0:00:04]}  Kc5 {[%clk 0:00:52]} 35. Bxc4 {[%clk 0:00:04]}  Bxc4 {[%clk 0:00:49]} 36. Nxc4 {[%clk 0:00:04]}  Nd5+ {[%clk 0:00:42]} 37. Kb3 {[%clk 0:00:03]}  Rb8+ {[%clk 0:00:42]} 38. Ka3 {[%clk 0:00:03]}  Kxc4 {[%clk 0:00:42]} 39. Rxg6 {[%clk 0:00:04]}  Rb3+ {[%clk 0:00:40]} 40. Ka2 {[%clk 0:00:02]}  Nc3+ {[%clk 0:00:40]} 41. Ka1 {[%clk 0:00:02]}  Rb1# {[%clk 0:00:40]} 0-1


[Site "https://www.chess.com"]

[Event "Titled Tuesday Blitz February 15 Early 2022"]
[White "Bashirli, Saadat"]
[Black "Leve, Nitai"]
[WhiteFideId "13429990"]
[BlackFideId "2006898"]
[WhiteElo "1173"]
[BlackElo "2144"]
[Result "0-1"]
[Round "04"]
[TimeControl "180+1"]
[Date "2022.02.15"]
[WhiteClock "0:00:02"]
[BlackClock "0:00:06"]

1. e4 {[%clk 0:03:00]}  c6 {[%clk 0:02:58]} 2. c4 {[%clk 0:02:59]}  d5 {[%clk 0:02:57]} 3. exd5 {[%clk 0:03:00]}  cxd5 {[%clk 0:02:58]} 4. cxd5 {[%clk 0:03:01]}  Nf6 {[%clk 0:02:59]} 5. Nc3 {[%clk 0:03:01]}  Nxd5 {[%clk 0:02:53]} 6. Bb5+ {[%clk 0:03:01]}  Nc6 {[%clk 0:02:49]} 7. Nf3 {[%clk 0:02:59]}  Bf5 {[%clk 0:02:45]} 8. O-O {[%clk 0:02:56]}  e6 {[%clk 0:02:44]} 9. Re1 {[%clk 0:02:55]}  Be7 {[%clk 0:02:44]} 10. Nxd5 {[%clk 0:02:51]}  Qxd5 {[%clk 0:02:31]} 11. Qa4 {[%clk 0:02:50]}  O-O {[%clk 0:02:30]} 12. d4 {[%clk 0:02:41]}  Rac8 {[%clk 0:02:22]} 13. Be3 {[%clk 0:02:37]}  Be4 {[%clk 0:02:16]} 14. Be2 {[%clk 0:02:32]}  Nb4 {[%clk 0:02:16]} 15. Rac1 {[%clk 0:02:22]}  Nxa2 {[%clk 0:02:04]} 16. Bc4 {[%clk 0:02:16]}  Qf5 {[%clk 0:01:58]} 17. Bxa2 {[%clk 0:02:12]}  Bxf3 {[%clk 0:01:58]} 18. gxf3 {[%clk 0:02:12]}  Qxf3 {[%clk 0:01:57]} 19. Qd1 {[%clk 0:02:12]}  Qh3 {[%clk 0:01:50]} 20. Rxc8 {[%clk 0:02:09]}  Rxc8 {[%clk 0:01:49]} 21. Qe2 {[%clk 0:01:49]}  Bd6 {[%clk 0:01:46]} 22. f4 {[%clk 0:01:43]}  Qf5 {[%clk 0:01:38]} 23. Qf2 {[%clk 0:01:37]}  Rc2 {[%clk 0:01:32]} 24. Re2 {[%clk 0:01:30]}  Rc8 {[%clk 0:01:27]} 25. Qg3 {[%clk 0:01:21]}  Qd3 {[%clk 0:01:17]} 26. Kf2 {[%clk 0:01:19]}  Rc2 {[%clk 0:01:13]} 27. Qf3 {[%clk 0:01:15]}  Be7 {[%clk 0:00:52]} 28. Rxc2 {[%clk 0:01:05]}  Bh4+ {[%clk 0:00:52]} 29. Kg1 {[%clk 0:00:58]}  Qxc2 {[%clk 0:00:50]} 30. Qg2 {[%clk 0:00:40]}  Qd3 {[%clk 0:00:34]} 31. Qd2 {[%clk 0:00:29]}  Qg6+ {[%clk 0:00:31]} 32. Kf1 {[%clk 0:00:28]}  Qe4 {[%clk 0:00:27]} 33. Ke2 {[%clk 0:00:19]}  Qc6 {[%clk 0:00:16]} 34. Qc3 {[%clk 0:00:18]}  Qg2+ {[%clk 0:00:14]} 35. Kd3 {[%clk 0:00:17]}  h5 {[%clk 0:00:12]} 36. Qc2 {[%clk 0:00:13]}  Qf3 {[%clk 0:00:07]} 37. Qe2 {[%clk 0:00:11]}  Qc6 {[%clk 0:00:06]} 38. Bc4 {[%clk 0:00:10]}  b5 {[%clk 0:00:06]} 39. Bb3 {[%clk 0:00:09]}  a5 {[%clk 0:00:06]} 40. Qc2 {[%clk 0:00:09]}  Qb7 {[%clk 0:00:06]} 41. Kd2 {[%clk 0:00:07]}  Qg2+ {[%clk 0:00:06]} 42. Kd3 {[%clk 0:00:07]}  Qf3 {[%clk 0:00:06]} 43. Qe2 {[%clk 0:00:07]}  Qc6 {[%clk 0:00:06]} 44. Bc2 {[%clk 0:00:06]}  Qc4+ {[%clk 0:00:05]} 45. Kd2 {[%clk 0:00:07]}  Qb4+ {[%clk 0:00:06]} 46. Kd1 {[%clk 0:00:07]}  a4 {[%clk 0:00:05]} 47. Qd2 {[%clk 0:00:06]}  Qe7 {[%clk 0:00:05]} 48. Qd3 {[%clk 0:00:06]}  g6 {[%clk 0:00:05]} 49. Qe2 {[%clk 0:00:06]}  b4 {[%clk 0:00:05]} 50. Qc4 {[%clk 0:00:06]}  b3 {[%clk 0:00:05]} 51. Bxb3 {[%clk 0:00:06]}  axb3 {[%clk 0:00:05]} 52. Qxb3 {[%clk 0:00:06]}  Qd7 {[%clk 0:00:05]} 53. Qc3 {[%clk 0:00:07]}  Bf6 {[%clk 0:00:05]} 54. Kd2 {[%clk 0:00:07]}  Kh7 {[%clk 0:00:05]} 55. b4 {[%clk 0:00:07]}  Qd5 {[%clk 0:00:06]} 56. Qc5 {[%clk 0:00:06]}  Qa2+ {[%clk 0:00:06]} 57. Qc2 {[%clk 0:00:07]}  Qa6 {[%clk 0:00:05]} 58. Qb2 {[%clk 0:00:06]}  Qb5 {[%clk 0:00:06]} 59. Qc3 {[%clk 0:00:06]}  Be7 {[%clk 0:00:06]} 60. Qc7 {[%clk 0:00:04]}  Qxb4+ {[%clk 0:00:06]} 61. Ke2 {[%clk 0:00:04]}  Kg8 {[%clk 0:00:06]} 62. Qc8+ {[%clk 0:00:04]}  Kg7 {[%clk 0:00:06]} 63. Qc7 {[%clk 0:00:04]}  Bf6 {[%clk 0:00:06]} 64. Qd7 {[%clk 0:00:04]}  Qb2+ {[%clk 0:00:06]} 65. Kf3 {[%clk 0:00:04]}  Qxh2 {[%clk 0:00:06]} 66. Ke4 {[%clk 0:00:05]}  Qg2+ {[%clk 0:00:06]} 67. Kd3 {[%clk 0:00:06]}  h4 {[%clk 0:00:07]} 68. Qd6 {[%clk 0:00:04]}  h3 {[%clk 0:00:06]} 69. Qb4 {[%clk 0:00:03]}  h2 {[%clk 0:00:06]} 70. Qb6 {[%clk 0:00:02]}  h1=Q {[%clk 0:00:06]} 71. d5 {[%clk 0:00:03]}  Qe4+ {[%clk 0:00:06]} 72. Kd2 {[%clk 0:00:02]}  Qhg2+ {[%clk 0:00:07]} 73. Kc1 {[%clk 0:00:02]}  Qec2# {[%clk 0:00:06]} 0-1


[Site "https://www.chess.com"]

[Event "Titled Tuesday Blitz February 15 Early 2022"]
[White "Bhagwat, Vinod"]
[Black "Mohammed, Dilshad"]
[WhiteFideId "5005949"]
[BlackFideId "5050421"]
[WhiteElo "2115"]
[BlackElo "2153"]
[Result "0-1"]
[Round "04"]
[TimeControl "180+1"]
[Date "2022.02.15"]
[WhiteClock "0:00:03"]
[BlackClock "0:00:13"]

1. d4 {[%clk 0:03:00]}  d5 {[%clk 0:02:59]} 2. c4 {[%clk 0:03:00]}  e6 {[%clk 0:02:59]} 3. Nc3 {[%clk 0:03:01]}  Nf6 {[%clk 0:02:59]} 4. Nf3 {[%clk 0:03:01]}  Be7 {[%clk 0:02:59]} 5. Bf4 {[%clk 0:03:01]}  O-O {[%clk 0:02:59]} 6. e3 {[%clk 0:03:01]}  b6 {[%clk 0:02:58]} 7. Bd3 {[%clk 0:02:46]}  a6 {[%clk 0:02:55]} 8. cxd5 {[%clk 0:02:44]}  exd5 {[%clk 0:02:53]} 9. O-O {[%clk 0:02:43]}  c5 {[%clk 0:02:52]} 10. dxc5 {[%clk 0:02:43]}  bxc5 {[%clk 0:02:52]} 11. Rc1 {[%clk 0:02:43]}  Bb7 {[%clk 0:02:42]} 12. Qe2 {[%clk 0:02:42]}  c4 {[%clk 0:02:41]} 13. Bb1 {[%clk 0:02:41]}  Nc6 {[%clk 0:02:41]} 14. Rfd1 {[%clk 0:02:39]}  Qa5 {[%clk 0:02:34]} 15. a3 {[%clk 0:02:28]}  Rfe8 {[%clk 0:02:21]} 16. Qc2 {[%clk 0:02:25]}  g6 {[%clk 0:02:13]} 17. Bg5 {[%clk 0:02:15]}  Rad8 {[%clk 0:01:44]} 18. Nd4 {[%clk 0:02:10]}  Ne5 {[%clk 0:01:41]} 19. Qe2 {[%clk 0:01:57]}  Ne4 {[%clk 0:01:34]} 20. Nxe4 {[%clk 0:01:51]}  dxe4 {[%clk 0:01:34]} 21. Bxe7 {[%clk 0:01:46]}  Rxe7 {[%clk 0:01:34]} 22. h4 {[%clk 0:01:20]}  Bd5 {[%clk 0:01:27]} 23. h5 {[%clk 0:01:18]}  Nd3 {[%clk 0:01:27]} 24. Bxd3 {[%clk 0:01:12]}  exd3 {[%clk 0:01:25]} 25. Qg4 {[%clk 0:01:08]}  Re5 {[%clk 0:01:11]} 26. hxg6 {[%clk 0:01:05]}  hxg6 {[%clk 0:01:11]} 27. Nf3 {[%clk 0:00:47]}  Rh5 {[%clk 0:01:06]} 28. e4 {[%clk 0:00:41]}  Be6 {[%clk 0:01:02]} 29. Qf4 {[%clk 0:00:36]}  Kg7 {[%clk 0:00:57]} 30. e5 {[%clk 0:00:34]}  Rdh8 {[%clk 0:00:52]} 31. g4 {[%clk 0:00:20]}  Rh1+ {[%clk 0:00:39]} 32. Kg2 {[%clk 0:00:19]}  R1h3 {[%clk 0:00:39]} 33. Qf6+ {[%clk 0:00:18]}  Kg8 {[%clk 0:00:38]} 34. Ng5 {[%clk 0:00:10]}  Rh2+ {[%clk 0:00:35]} 35. Kg3 {[%clk 0:00:10]}  Qd5 {[%clk 0:00:30]} 36. f3 {[%clk 0:00:09]}  Bxg4 {[%clk 0:00:21]} 37. Qxf7+ {[%clk 0:00:04]}  Qxf7 {[%clk 0:00:21]} 38. Nxf7 {[%clk 0:00:04]}  Kxf7 {[%clk 0:00:21]} 39. fxg4 {[%clk 0:00:04]}  R8h3+ {[%clk 0:00:19]} 40. Kf4 {[%clk 0:00:03]}  Rf2+ {[%clk 0:00:13]} 0-1


[Site "https://www.chess.com"]

[Event "Titled Tuesday Blitz February 15 Early 2022"]
[White "Blokhin, Sofia"]
[Black "Dilmukhametov, Artur"]
[WhiteFideId "4508190"]
[BlackFideId "24179922"]
[WhiteElo "1762"]
[BlackElo "2266"]
[Result "1-0"]
[Round "04"]
[TimeControl "180+1"]
[Date "2022.02.15"]
[WhiteClock "0:00:42"]
[BlackClock "0:00:47"]

1. e4 {[%clk 0:03:00]}  e6 {[%clk 0:02:59]} 2. d4 {[%clk 0:03:00]}  d5 {[%clk 0:02:58]} 3. e5 {[%clk 0:03:00]}  c5 {[%clk 0:02:57]} 4. c3 {[%clk 0:03:00]}  Qb6 {[%clk 0:02:53]} 5. Nf3 {[%clk 0:02:59]}  Nc6 {[%clk 0:02:52]} 6. a3 {[%clk 0:02:58]}  a5 {[%clk 0:02:49]} 7. Bd3 {[%clk 0:02:56]}  Bd7 {[%clk 0:02:47]} 8. Bc2 {[%clk 0:02:55]}  Nh6 {[%clk 0:02:45]} 9. O-O {[%clk 0:02:54]}  g6 {[%clk 0:02:41]} 10. b3 {[%clk 0:02:40]}  Nf5 {[%clk 0:02:38]} 11. Be3 {[%clk 0:02:38]}  Nxe3 {[%clk 0:02:35]} 12. fxe3 {[%clk 0:02:37]}  O-O-O {[%clk 0:02:29]} 13. a4 {[%clk 0:02:10]}  Be7 {[%clk 0:02:18]} 14. Na3 {[%clk 0:02:09]}  Na7 {[%clk 0:02:09]} 15. Bd3 {[%clk 0:02:03]}  cxd4 {[%clk 0:02:09]} 16. exd4 {[%clk 0:01:49]}  f6 {[%clk 0:02:04]} 17. exf6 {[%clk 0:01:44]}  Bxf6 {[%clk 0:02:04]} 18. Kh1 {[%clk 0:01:37]}  Rhe8 {[%clk 0:01:58]} 19. Ne5 {[%clk 0:01:28]}  Bxe5 {[%clk 0:01:57]} 20. dxe5 {[%clk 0:01:29]}  Nc6 {[%clk 0:01:51]} 21. Re1 {[%clk 0:01:22]}  Kb8 {[%clk 0:01:44]} 22. Nb5 {[%clk 0:01:21]}  Na7 {[%clk 0:01:38]} 23. Nd6 {[%clk 0:01:18]}  Re7 {[%clk 0:01:35]} 24. b4 {[%clk 0:01:14]}  axb4 {[%clk 0:01:27]} 25. cxb4 {[%clk 0:01:14]}  Qxb4 {[%clk 0:01:26]} 26. Rb1 {[%clk 0:01:12]}  Qa5 {[%clk 0:01:22]} 27. Nxb7 {[%clk 0:01:05]}  Qxa4 {[%clk 0:01:20]} 28. Nc5+ {[%clk 0:01:00]}  Ka8 {[%clk 0:01:12]} 29. Nxa4 {[%clk 0:00:57]}  Bxa4 {[%clk 0:01:13]} 30. Qxa4 {[%clk 0:00:57]}  Rb7 {[%clk 0:01:12]} 31. h3 {[%clk 0:00:55]}  Rdb8 {[%clk 0:01:08]} 32. Rxb7 {[%clk 0:00:53]}  Rxb7 {[%clk 0:01:07]} 33. Ra1 {[%clk 0:00:51]}  Kb8 {[%clk 0:01:03]} 34. Qe8+ {[%clk 0:00:50]}  Nc8 {[%clk 0:00:57]} 35. Ba6 {[%clk 0:00:46]}  Rc7 {[%clk 0:00:53]} 36. Bxc8 {[%clk 0:00:46]}  Rxc8 {[%clk 0:00:53]} 37. Rc1 {[%clk 0:00:45]}  Kb7 {[%clk 0:00:50]} 38. Qxc8+ {[%clk 0:00:44]}  Ka7 {[%clk 0:00:46]} 39. Rb1 {[%clk 0:00:42]}  d4 {[%clk 0:00:47]} 40. Qb7# {[%clk 0:00:42]} 1-0


[Site "https://www.chess.com"]

[Event "Titled Tuesday Blitz February 15 Early 2022"]
[White "Bodnaruk, Anastasia"]
[Black "Sargissyan, Sargis"]
[WhiteFideId "4181751"]
[BlackFideId "13303210"]
[WhiteElo "2393"]
[BlackElo "2174"]
[Result "0-1"]
[Round "04"]
[TimeControl "180+1"]
[Date "2022.02.15"]
[WhiteClock "0:00:06"]
[BlackClock "0:00:13"]

1. e4 {[%clk 0:02:59]}  c5 {[%clk 0:02:57]} 2. Nc3 {[%clk 0:02:59]}  Nc6 {[%clk 0:02:57]} 3. Bb5 {[%clk 0:02:58]}  g6 {[%clk 0:02:51]} 4. Bxc6 {[%clk 0:02:56]}  bxc6 {[%clk 0:02:48]} 5. d3 {[%clk 0:02:52]}  Bg7 {[%clk 0:02:49]} 6. f4 {[%clk 0:02:48]}  Nf6 {[%clk 0:02:28]} 7. Nf3 {[%clk 0:02:42]}  O-O {[%clk 0:02:13]} 8. O-O {[%clk 0:02:40]}  d6 {[%clk 0:02:07]} 9. Kh1 {[%clk 0:02:25]}  e6 {[%clk 0:01:35]} 10. e5 {[%clk 0:02:21]}  Ne8 {[%clk 0:01:17]} 11. exd6 {[%clk 0:02:19]}  Nxd6 {[%clk 0:01:17]} 12. Ne4 {[%clk 0:02:11]}  Nxe4 {[%clk 0:01:13]} 13. dxe4 {[%clk 0:02:10]}  Ba6 {[%clk 0:01:13]} 14. Re1 {[%clk 0:02:01]}  Qxd1 {[%clk 0:01:11]} 15. Rxd1 {[%clk 0:02:00]}  Be2 {[%clk 0:01:12]} 16. Re1 {[%clk 0:01:59]}  Bxf3 {[%clk 0:01:12]} 17. gxf3 {[%clk 0:01:59]}  Rab8 {[%clk 0:01:07]} 18. c3 {[%clk 0:01:47]}  Rfd8 {[%clk 0:00:55]} 19. Kg2 {[%clk 0:01:46]}  Bh6 {[%clk 0:00:49]} 20. Kf2 {[%clk 0:01:34]}  Rd3 {[%clk 0:00:47]} 21. e5 {[%clk 0:01:22]}  f6 {[%clk 0:00:28]} 22. exf6 {[%clk 0:01:03]}  Kf7 {[%clk 0:00:28]} 23. Re4 {[%clk 0:01:03]}  Kxf6 {[%clk 0:00:23]} 24. b3 {[%clk 0:01:02]}  Rd1 {[%clk 0:00:17]} 25. Rc4 {[%clk 0:00:57]}  Rb5 {[%clk 0:00:14]} 26. Kg3 {[%clk 0:00:49]}  Rg1+ {[%clk 0:00:14]} 27. Kf2 {[%clk 0:00:49]}  Rd1 {[%clk 0:00:14]} 28. Re4 {[%clk 0:00:47]}  a6 {[%clk 0:00:12]} 29. Re1 {[%clk 0:00:43]}  Rxe1 {[%clk 0:00:11]} 30. Kxe1 {[%clk 0:00:43]}  c4 {[%clk 0:00:12]} 31. Bd2 {[%clk 0:00:31]}  Rh5 {[%clk 0:00:10]} 32. bxc4 {[%clk 0:00:13]}  Rxh2 {[%clk 0:00:10]} 33. Rd1 {[%clk 0:00:11]}  Rh1+ {[%clk 0:00:10]} 34. Ke2 {[%clk 0:00:11]}  Rxd1 {[%clk 0:00:11]} 35. Kxd1 {[%clk 0:00:12]}  Kf5 {[%clk 0:00:12]} 36. Ke2 {[%clk 0:00:10]}  Bxf4 {[%clk 0:00:12]} 37. Be1 {[%clk 0:00:10]}  h5 {[%clk 0:00:12]} 38. Kd3 {[%clk 0:00:09]}  g5 {[%clk 0:00:12]} 39. c5 {[%clk 0:00:09]}  h4 {[%clk 0:00:12]} 40. Bf2 {[%clk 0:00:08]}  h3 {[%clk 0:00:12]} 41. Bg1 {[%clk 0:00:07]}  h2 {[%clk 0:00:13]} 42. Bxh2 {[%clk 0:00:08]}  Bxh2 {[%clk 0:00:13]} 43. Kc4 {[%clk 0:00:08]}  Ke5 {[%clk 0:00:13]} 44. Kb4 {[%clk 0:00:07]}  Kd5 {[%clk 0:00:13]} 45. a4 {[%clk 0:00:06]}  Bc7 {[%clk 0:00:13]} 0-1


[Site "https://www.chess.com"]